bitfinex-derivatives/quotes_SOLF0:USTF0_20250823
["timestamp","ask_amount","ask_price","bid_price","bid_amount"]
[1755971469690,119.48,203.52,203.49,7.5358]
[1755971471590,119.48,203.52,203.49,4.9158]
[1755971471985,330.38,203.54,203.49,4.9158]
[1755971472185,119.46,203.53,203.49,4.9158]
[1755971474290,122.70863021,203.53,203.49,4.9158]
[1755971475792,122.70863021,203.53,203.47,7.5363]
[1755971476192,122.70863021,203.53,203.47,4.9163]
[1755971476392,119.46,203.53,203.47,4.9163]
[1755971476793,119.46,203.53,203.48,4.916]
[1755971477091,119.44,203.52,203.48,4.916]
[1755971477792,119.44,203.51,203.48,4.916]
[1755971480184,335.45685139,203.54,203.48,4.916]
[1755971480386,119.42,203.53,203.48,4.916]
[1755971481095,119.42,203.53,203.48,7.536]
[1755971481897,335.45685139,203.54,203.48,7.536]
[1755971482094,119.42,203.53,203.48,7.536]
[1755971483296,335.45685139,203.54,203.48,7.536]
[1755971483493,119.4,203.53,203.48,4.916]
[1755971485097,119.38,203.52,203.48,4.916]
[1755971485993,340.37165139,203.54,203.49,1.72741932]
[1755971486191,119.36,203.53,203.48,4.916]
[1755971486390,119.36,203.53,203.49,1.72815745]
[1755971486598,119.36,203.53,203.48,4.916]
[1755971486798,119.36,203.53,203.49,1.72811767]
[1755971487001,119.36,203.53,203.48,7.536]
[1755971487297,119.36,203.53,203.49,1.72824779]
[1755971487502,119.36,203.53,203.5,1.72824779]
[1755971487701,119.36,203.53,203.48,7.536]
[1755971487901,119.36,203.53,203.49,1.72884133]
[1755971488200,119.36,203.53,203.5,1.72884133]
[1755971488402,119.36,203.53,203.49,4.9158]
[1755971488601,119.36,203.53,203.5,1.72969968]
[1755971488902,119.36,203.53,203.49,4.9158]
[1755971489098,119.36,203.53,203.5,1.72969968]
[1755971489302,119.36,203.53,203.51,1.72969968]
[1755971489506,119.36,203.53,203.49,4.9158]
[1755971489804,119.36,203.53,203.5,1.73063021]
[1755971490106,119.36,203.53,203.51,1.73063021]
[1755971490404,119.36,203.53,203.49,4.9158]
[1755971490604,119.36,203.53,203.5,1.73115416]
[1755971490804,119.36,203.53,203.51,1.73115416]
[1755971491105,119.36,203.53,203.49,4.9158]
[1755971491404,119.36,203.53,203.5,1.73122791]
[1755971491593,119.36,203.53,203.51,1.73122791]
[1755971491798,119.36,203.53,203.49,4.9158]
[1755971491999,119.36,203.53,203.5,1.73122791]
[1755971492310,5.07685139,203.54,203.51,1.73122791]
[1755971492604,119.3,203.53,203.49,4.9158]
[1755971493004,119.3,203.53,203.5,1.73139011]
[1755971493203,119.3,203.53,203.51,1.73139011]
[1755971493407,119.3,203.53,203.49,4.9158]
[1755971493705,119.3,203.53,203.5,6.14718269]
[1755971493910,119.3,203.53,203.51,1.73134426]
[1755971494099,119.3,203.53,203.49,4.9158]
[1755971494305,119.3,203.53,203.5,6.14715429]
[1755971494503,119.3,203.53,203.51,1.73133626]
[1755971494709,5.07685139,203.54,203.49,4.9158]
[1755971494903,119.26,203.53,203.5,6.14702034]
[1755971495108,119.26,203.53,203.51,1.73129853]
[1755971495412,119.26,203.53,203.49,4.9158]
[1755971495611,119.26,203.53,203.5,6.14725831]
[1755971495911,119.26,203.52,203.51,1.73136556]
[1755971496214,119.26,203.52,203.51,1.73140438]
[1755971496412,122.50922374,203.52,203.51,1.73140438]
[1755971499614,3.24922374,203.52,203.51,1.73140438]
[1755971499915,122.48922374,203.52,203.51,1.73140438]
[1755971500116,3.24922374,203.52,203.51,1.73140438]
[1755971500316,122.48922374,203.52,203.51,1.73140438]
[1755971500718,3.24922374,203.52,203.51,1.73140438]
[1755971500916,122.46922374,203.52,203.51,1.73140438]
[1755971501112,3.24922374,203.52,203.51,1.73140438]
[1755971501310,122.46922374,203.52,203.51,1.73140438]
[1755971502119,3.24922374,203.52,203.51,1.73140438]
[1755971502312,122.46922374,203.52,203.51,1.73140438]
[1755971502712,122.46922374,203.52,203.51,1.73222146]
[1755971503116,3.24922374,203.52,203.51,1.73222146]
[1755971503414,122.46922374,203.52,203.51,1.73222146]
[1755971506017,122.46922374,203.52,203.51,6.15155478]
[1755971507822,3.24922374,203.52,203.51,6.15155478]
[1755971508223,122.46922374,203.52,203.51,6.15155478]
[1755971508818,3.24922374,203.52,203.51,6.15155478]
[1755971509119,122.46922374,203.52,203.51,6.15155478]
[1755971510620,3.24922374,203.52,203.51,6.15155478]
[1755971511018,122.46922374,203.52,203.51,6.15155478]
[1755971511521,3.24922374,203.52,203.51,6.15155478]
[1755971511721,122.46922374,203.52,203.51,6.15155478]
[1755971512421,122.46922374,203.52,203.5,4.9156]
[1755971512622,122.46922374,203.52,203.51,6.24565121]
[1755971514126,122.46922374,203.52,203.51,6.24563736]
[1755971516222,122.46922374,203.52,203.51,1.73550514]
[1755971517128,3.24922374,203.52,203.51,1.73550514]
[1755971517427,122.46922374,203.52,203.51,1.73550514]
[1755971517730,122.46922374,203.52,203.51,6.31627012]
[1755971521025,122.46922374,203.52,203.51,4.58076498]
[1755971521229,3.24922374,203.52,203.51,6.31664148]
[1755971521429,8.29679784,203.53,203.51,1.7358765]
[1755971521622,330.42,203.6,203.51,1.7358765]
[1755971521623,8.29679784,203.55,203.53,2.79]
[1755971521822,3.24922374,203.58,203.54,9.12721274]
[1755971522021,119.22,203.57,203.55,6.33156534]
[1755971522228,119.22,203.57,203.54,2.79]
[1755971522528,119.22,203.57,203.55,9.11688989]
[1755971522831,119.22,203.57,203.55,2.79]
[1755971523530,3.24922374,203.58,203.55,2.79]
[1755971523730,119.22,203.57,203.55,2.79]
[1755971524832,119.22,203.57,203.56,4.71856624]
[1755971525332,119.22,203.57,203.55,2.79]
[1755971526333,119.22,203.57,203.56,4.71627178]
[1755971527643,119.22,203.57,203.55,2.79]
[1755971530135,119.2,203.56,203.55,2.79]
[1755971530338,3.24922374,203.58,203.55,2.79]
[1755971530538,119.2,203.57,203.55,2.79]
[1755971531638,3.24922374,203.58,203.55,2.79]
[1755971531839,119.2,203.57,203.55,2.79]
[1755971532739,119.2,203.57,203.54,4.9147]
[1755971532939,119.2,203.57,203.54,7.5047]
[1755971535036,330.42,203.6,203.54,7.5047]
[1755971535236,3.24922374,203.58,203.54,7.5047]
[1755971535435,119.2,203.57,203.54,7.5047]
[1755971536839,119.18,203.56,203.54,7.5047]
[1755971537239,3.24922374,203.58,203.54,7.5047]
[1755971537540,119.18,203.57,203.54,7.5047]
[1755971539741,3.24922374,203.58,203.54,7.5047]
[1755971539941,119.18,203.57,203.54,7.5047]
[1755971540242,119.18,203.57,203.54,2.59]
[1755971540442,3.24922374,203.56,203.52,4.9151]
[1755971540740,119.18,203.55,203.53,6.44488116]
[1755971541042,119.18,203.54,203.52,4.9151]
[1755971541242,119.18,203.54,203.53,6.44521964]
[1755971541541,119.18,203.54,203.53,6.44521646]
[1755971542244,3.24922374,203.56,203.53,6.44521646]
[1755971542442,119.18,203.55,203.54,4.71503507]
[1755971542638,3.24922374,203.56,203.54,4.71503507]
[1755971542940,119.18,203.55,203.52,7.5051]
[1755971543140,119.18,203.55,203.53,6.44769139]
[1755971543342,3.24922374,203.56,203.54,4.71684329]
[1755971543537,119.18,203.55,203.52,7.5051]
[1755971543738,119.18,203.55,203.53,6.44960881]
[1755971543942,119.18,203.55,203.54,4.71824605]
[1755971544145,3.24922374,203.56,203.54,4.71824605]
[1755971544340,119.18,203.55,203.52,7.5051]
[1755971544545,119.18,203.55,203.53,6.44994078]
[1755971544746,119.18,203.55,203.52,7.5051]
[1755971544747,119.18,203.55,203.54,4.71848897]
[1755971545240,3.24922374,203.56,203.54,4.71848897]
[1755971545446,4.9126,203.63,203.51,2.59]
[1755971545636,3.24922374,203.59,203.52,9.6954947]
[1755971545838,119.18,203.58,203.57,2.59]
[1755971546037,119.18,203.58,203.57,9.03627096]
[1755971546745,119.18,203.58,203.57,13.95017096]
[1755971548948,3.24922374,203.62,203.59,7.5033]
[1755971549143,119.18,203.61,203.59,7.5033]
[1755971550245,119.18,203.61,203.59,4.9133]
[1755971550750,3.24922374,203.62,203.59,4.9133]
[1755971551045,3.24922374,203.6,203.5,2.59]
[1755971551245,3.24922374,203.58,203.52,5.83922374]
[1755971551446,119.16,203.57,203.53,4.71950406]
[1755971551648,119.16,203.57,203.54,9.03655892]
[1755971551845,119.16,203.57,203.55,6.44655892]
[1755971552050,119.16,203.57,203.56,4.71950406]
[1755971556351,119.16,203.57,203.55,7.5043]
[1755971557252,119.16,203.57,203.53,4.9148]
[1755971557552,119.16,203.57,203.53,7.7148]
[1755971557752,119.16,203.57,203.54,4.7204358]
[1755971557952,119.16,203.57,203.53,7.7148]
[1755971558144,119.16,203.57,203.54,9.63520553]
[1755971558347,119.16,203.57,203.54,4.9146]
[1755971559449,8.16212374,203.62,203.55,4.72108598]
[1755971559655,119.16,203.61,203.55,3.24922374]
[1755971559851,119.16,203.61,203.56,4.72052359]
[1755971560053,119.16,203.61,203.56,2.8]
[1755971560659,119.16,203.61,203.57,4.9139]
[1755971560958,3.24922374,203.62,203.57,4.9139]
[1755971561159,119.16,203.61,203.57,7.7139]
[1755971564360,119.16,203.6,203.58,4.9136]
[1755971566360,119.16,203.6,203.59,4.72332696]
[1755971567761,119.16,203.6,203.56,4.9141]
[1755971567958,119.16,203.6,203.57,6.45255315]
[1755971568153,119.16,203.6,203.58,4.72377652]
[1755971568358,3.24922374,203.62,203.57,4.9139]
[1755971568558,119.16,203.61,203.58,4.72367662]
[1755971568757,119.16,203.61,203.57,4.9139]
[1755971568960,119.16,203.61,203.58,4.72367662]
[1755971569159,119.16,203.61,203.57,4.9139]
[1755971569459,119.16,203.61,203.58,4.72177936]
[1755971569659,119.16,203.61,203.57,4.9139]
[1755971569864,119.16,203.61,203.58,4.72166394]
[1755971570056,119.16,203.61,203.57,4.9139]
[1755971570257,3.24922374,203.62,203.57,4.9139]
[1755971570555,119.16,203.61,203.58,4.72143516]
[1755971570754,119.16,203.61,203.57,4.9139]
[1755971570962,119.16,203.61,203.58,4.72141625]
[1755971571159,119.16,203.61,203.57,4.9139]
[1755971571360,119.16,203.61,203.58,4.72140791]
[1755971571560,119.16,203.61,203.57,4.9139]
[1755971571762,119.16,203.61,203.58,4.72140791]
[1755971571962,119.16,203.61,203.57,4.9139]
[1755971572162,119.16,203.61,203.58,4.72159857]
[1755971572363,119.16,203.61,203.57,4.9139]
[1755971572564,119.16,203.61,203.58,4.72152631]
[1755971572763,119.16,203.61,203.57,4.9139]
[1755971573062,119.16,203.61,203.58,4.72152688]
[1755971573262,119.16,203.61,203.57,4.9139]
[1755971573462,119.16,203.61,203.58,4.72106804]
[1755971573658,119.16,203.61,203.56,2.8]
[1755971573857,119.16,203.61,203.57,6.44887596]
[1755971574057,119.16,203.61,203.56,2.8]
[1755971574058,119.16,203.61,203.58,4.72109529]
[1755971574261,119.16,203.61,203.56,2.8]
[1755971574466,119.16,203.61,203.57,6.44873134]
[1755971574665,119.16,203.61,203.58,4.72098942]
[1755971574866,119.16,203.61,203.56,2.8]
[1755971575067,119.16,203.61,203.57,6.44873134]
[1755971575266,3.24922374,203.6,203.58,4.72098942]
[1755971575567,3.24922374,203.6,203.56,7.7141]
[1755971575766,3.24922374,203.6,203.57,6.4504545]
[1755971575966,3.24922374,203.6,203.58,4.72117521]
[1755971576169,3.24922374,203.6,203.56,7.7141]
[1755971576367,3.24922374,203.6,203.57,6.45093378]
[1755971576568,3.24922374,203.6,203.58,4.72152062]
[1755971576769,3.24922374,203.6,203.56,4.9141]
[1755971576960,3.24922374,203.6,203.57,6.45081615]
[1755971577269,3.24922374,203.6,203.58,4.72143434]
[1755971577567,3.24922374,203.6,203.54,4.9146]
[1755971577759,3.24922374,203.6,203.55,6.45466474]
[1755971577958,119.14,203.59,203.56,9.25466474]
[1755971578160,3.24922374,203.6,203.57,6.45466474]
[1755971578363,3.24922374,203.6,203.58,4.72428198]
[1755971578564,119.14,203.59,203.57,4.9139]
[1755971578868,3.24922374,203.6,203.58,4.72885083]
[1755971579067,3.24922374,203.6,203.57,4.9139]
[1755971579267,119.14,203.59,203.58,4.72868078]
[1755971579669,3.24922374,203.6,203.58,4.72868078]
[1755971579871,3.24922374,203.6,203.57,4.9139]
[1755971580067,119.14,203.59,203.58,4.72893683]
[1755971580268,3.24922374,203.6,203.58,4.72932025]
[1755971580469,3.24922374,203.6,203.57,4.9139]
[1755971580765,3.24922374,203.6,203.51,24.5769]
[1755971580766,3.24922374,203.58,203.47,2.8]
[1755971580968,3.24922374,203.54,203.48,6.46694189]
[1755971581172,3.24922374,203.54,203.5,2.8]
[1755971581373,3.24922374,203.54,203.51,6.46694189]
[1755971581575,119.14,203.56,203.53,2.8]
[1755971581874,3.24922374,203.57,203.54,2.8]
[1755971582069,119.16,203.56,203.5,3.24922374]
[1755971582267,119.16,203.56,203.52,2.8]
[1755971582480,119.16,203.56,203.53,6.30899824]
[1755971582776,119.16,203.56,203.54,6.30899824]
[1755971582974,119.16,203.56,203.52,2.8]
[1755971583174,119.16,203.56,203.53,6.30815399]
[1755971583374,119.16,203.56,203.54,6.30815399]
[1755971583574,119.16,203.56,203.52,7.715]
[1755971583778,119.16,203.56,203.53,6.30886988]
[1755971583969,119.16,203.56,203.52,7.715]
[1755971584174,119.16,203.56,203.53,6.30915816]
[1755971584376,3.24922374,203.57,203.52,7.715]
[1755971584572,3.24922374,203.57,203.53,6.30913337]
[1755971584573,119.16,203.56,203.53,6.30913337]
[1755971584774,119.16,203.56,203.52,7.715]
[1755971585075,119.16,203.56,203.53,6.30913337]
[1755971585270,119.16,203.56,203.52,7.715]
[1755971585477,119.16,203.56,203.53,6.30911635]
[1755971585674,119.16,203.56,203.52,7.715]
[1755971585969,119.14,203.56,203.53,6.30911635]
[1755971586278,119.14,203.56,203.52,7.715]
[1755971586478,119.14,203.56,203.53,6.30911878]
[1755971586677,119.14,203.56,203.52,7.715]
[1755971586878,119.14,203.56,203.53,6.30911258]
[1755971587070,119.14,203.56,203.52,7.715]
[1755971587272,119.16,203.56,203.53,6.30881321]
[1755971587481,119.16,203.56,203.54,1.73197553]
[1755971587774,119.16,203.56,203.52,7.715]
[1755971588077,119.16,203.56,203.53,6.30880195]
[1755971588277,119.16,203.56,203.54,1.7319703]
[1755971588475,119.16,203.56,203.52,7.715]
[1755971588672,119.16,203.56,203.53,6.30892912]
[1755971588877,3.24922374,203.57,203.52,7.715]
[1755971589081,3.24922374,203.57,203.53,6.30850213]
[1755971589284,119.16,203.56,203.54,6.30869436]
[1755971589581,3.24922374,203.57,203.52,7.715]
[1755971589782,119.16,203.56,203.53,6.3087671]
[1755971589983,119.16,203.56,203.54,6.3087671]
[1755971590188,119.16,203.56,203.53,2.75]
[1755971590483,119.16,203.56,203.54,6.30889634]
[1755971590683,119.16,203.56,203.53,2.75]
[1755971590874,119.16,203.56,203.54,6.30928788]
[1755971591181,119.16,203.56,203.52,4.915]
[1755971591382,119.16,203.56,203.53,6.30904557]
[1755971591583,119.16,203.56,203.54,6.30904557]
[1755971591783,119.16,203.55,203.52,7.665]
[1755971591985,119.16,203.55,203.53,6.30972404]
[1755971592185,119.16,203.55,203.54,1.73222333]
[1755971594187,119.16,203.55,203.54,6.31032729]
[1755971595089,119.16,203.55,203.54,1.73222333]
[1755971595289,119.16,203.55,203.54,6.31056764]
[1755971595982,119.16,203.56,203.54,6.31056764]
[1755971596178,119.16,203.56,203.52,7.665]
[1755971596379,119.16,203.56,203.53,6.31066375]
[1755971596587,119.16,203.56,203.52,7.665]
[1755971596789,119.16,203.56,203.53,6.31066375]
[1755971596980,119.16,203.56,203.52,7.665]
[1755971597183,119.16,203.56,203.53,6.31066375]
[1755971597489,119.16,203.56,203.52,7.665]
[1755971597685,119.16,203.56,203.53,6.31046708]
[1755971597885,119.16,203.56,203.52,7.665]
[1755971598087,119.16,203.56,203.53,6.31046708]
[1755971598385,119.16,203.56,203.52,7.665]
[1755971598585,119.16,203.56,203.53,6.31028768]
[1755971598888,119.16,203.56,203.52,7.665]
[1755971599087,119.16,203.56,203.53,6.31028768]
[1755971599288,119.16,203.56,203.52,7.665]
[1755971599485,119.16,203.56,203.53,6.3101248]
[1755971599690,119.16,203.56,203.52,7.665]
[1755971599889,119.16,203.56,203.53,6.3101248]
[1755971600090,3.24922374,203.57,203.52,7.665]
[1755971600290,119.16,203.56,203.53,6.30986246]
[1755971600490,119.16,203.56,203.52,7.665]
[1755971600791,119.16,203.56,203.53,6.30986246]
[1755971600996,119.16,203.55,203.52,7.665]
[1755971601183,119.16,203.55,203.53,6.30986246]
[1755971601483,119.16,203.55,203.52,7.665]
[1755971601686,119.16,203.55,203.53,6.30978086]
[1755971601992,119.16,203.55,203.52,7.665]
[1755971602193,119.16,203.55,203.53,6.30978086]
[1755971602383,119.16,203.55,203.52,7.665]
[1755971602586,119.16,203.55,203.53,6.30970525]
[1755971602883,119.16,203.55,203.52,7.665]
[1755971603189,3.24922374,203.57,203.52,7.665]
[1755971603190,119.16,203.56,203.53,6.30949919]
[1755971603384,119.16,203.56,203.52,7.665]
[1755971603583,119.16,203.56,203.53,6.30963116]
[1755971603886,119.16,203.56,203.53,4.9148]
[1755971604390,119.16,203.56,203.53,7.6648]
[1755971605087,3.24922374,203.57,203.53,7.6648]
[1755971605293,119.16,203.56,203.53,7.6648]
[1755971605992,3.24922374,203.57,203.53,7.6648]
[1755971606293,119.16,203.56,203.54,6.3097475]
[1755971606494,119.16,203.56,203.55,6.3097475]
[1755971606995,3.24922374,203.57,203.55,6.3097475]
[1755971607297,3.24922374,203.57,203.53,7.6648]
[1755971607298,119.16,203.56,203.53,7.6648]
[1755971607487,119.16,203.56,203.54,6.30975485]
[1755971607694,119.16,203.56,203.55,6.30975485]
[1755971608497,119.16,203.56,203.55,4.57762361]
[1755971608692,119.16,203.56,203.55,4.53095983]
[1755971608997,119.16,203.56,203.55,1.73199778]
[1755971609296,3.24922374,203.57,203.55,6.26354406]
[1755971609496,119.16,203.56,203.53,4.9148]
[1755971609798,119.16,203.56,203.54,6.26353791]
[1755971609997,119.16,203.56,203.55,6.26353791]
[1755971610197,3.24922374,203.57,203.55,6.26353791]
[1755971610398,119.16,203.56,203.53,4.9148]
[1755971610699,119.16,203.56,203.54,6.26387931]
[1755971610897,119.16,203.56,203.55,6.26387931]
[1755971611592,3.24922374,203.57,203.55,6.26387931]
[1755971611798,119.16,203.56,203.53,4.9148]
[1755971611994,3.24922374,203.57,203.54,6.2637236]
[1755971612194,119.16,203.56,203.55,6.2637236]
[1755971612395,3.24922374,203.57,203.55,6.2637236]
[1755971612598,119.16,203.56,203.53,7.6648]
[1755971612798,119.16,203.56,203.54,6.26519698]
[1755971612996,119.16,203.56,203.55,6.26519698]
[1755971614399,119.14,203.56,203.55,6.26519698]
[1755971618507,119.14,203.56,203.53,7.6648]
[1755971618804,119.14,203.56,203.54,6.2678033]
[1755971619105,3.24922374,203.57,203.55,6.26729971]
[1755971619307,3.24922374,203.57,203.56,1.7332008]
[1755971619503,122.38922374,203.57,203.56,1.7332008]
[1755971619903,119.14,203.57,203.53,4.9148]
[1755971620206,3.24922374,203.56,203.54,6.26782706]
[1755971620402,3.24922374,203.56,203.55,6.26782706]
[1755971622704,122.38922374,203.56,203.55,6.26782706]
[1755971628404,122.38922374,203.56,203.55,6.27458843]
[1755971628912,122.38922374,203.56,203.55,6.27460518]
[1755971631612,122.38922374,203.56,203.55,1.73523841]
[1755971631813,122.38922374,203.56,203.55,6.27460826]
[1755971634019,3.24922374,203.56,203.55,6.27460826]
[1755971634217,122.38922374,203.56,203.55,6.27460826]
[1755971634517,122.38922374,203.56,203.55,6.2744945]
[1755971636717,3.24922374,203.56,203.55,6.2744945]
[1755971636911,122.36922374,203.56,203.55,6.2744945]
[1755971637319,122.36922374,203.56,203.55,1.73512465]
[1755971637519,122.36922374,203.56,203.55,6.27419767]
[1755971637712,122.36922374,203.56,203.55,1.73512465]
[1755971638018,122.36922374,203.56,203.55,6.51018681]
[1755971638212,122.36922374,203.56,203.52,7.5951]
[1755971638419,122.36922374,203.56,203.53,9.29800888]
[1755971638613,122.36922374,203.56,203.54,6.61800888]
[1755971638814,122.36922374,203.56,203.55,6.61800888]
[1755971639014,119.12,203.56,203.55,6.61800888]
[1755971639217,122.36922374,203.56,203.55,6.61800888]
[1755971642421,122.36922374,203.56,203.48,2.68]
[1755971642624,3.24922374,203.5,203.48,2.68]
[1755971642921,119.12,203.49,203.48,2.68]
[1755971643118,119.12,203.49,203.47,134.22938226]
[1755971643319,119.12,203.49,203.47,136.90938226]
[1755971645128,119.12,203.49,203.48,2.56]
[1755971646932,119.12,203.49,203.47,136.78938226]
[1755971648528,119.12,203.49,203.47,134.22938226]
[1755971649523,119.12,203.49,203.47,136.78938226]
[1755971653034,3.24922374,203.48,203.47,134.22938226]
[1755971654442,3.24922374,203.48,203.47,139.01741096]
[1755971655340,3.24922374,203.48,203.47,141.57741096]
[1755971656244,3.24922374,203.48,203.47,143.26803117]
[1755971656741,3.24922374,203.48,203.47,138.48000247]
[1755971656941,3.24922374,203.48,203.47,143.26680885]
[1755971666452,3.24922374,203.48,203.47,136.78938226]
[1755971666648,3.24922374,203.48,203.47,143.26382676]
[1755971675958,122.36922374,203.48,203.47,143.26382676]
[1755971676458,122.36922374,203.48,203.47,143.17009656]
[1755971676854,3.24922374,203.48,203.47,138.48008382]
[1755971677058,122.36922374,203.48,203.47,143.16996554]
[1755971683160,122.34922374,203.48,203.47,143.16996554]
[1755971684761,122.34922374,203.48,203.47,6.38058328]
[1755971686066,122.34922374,203.48,203.47,4.68988172]
[1755971686266,122.34922374,203.48,203.47,4.69733157]
[1755971687868,122.34922374,203.48,203.47,6.39141198]
[1755971688164,3.24922374,203.48,203.47,6.39141198]
[1755971688463,122.34922374,203.48,203.47,9.04141198]
[1755971689467,122.34922374,203.48,203.47,9.04388233]
[1755971691469,122.34922374,203.48,203.47,6.39388233]
[1755971691767,122.34922374,203.48,203.47,4.69980192]
[1755971692073,122.34922374,203.48,203.47,6.39415336]
[1755971694668,122.34922374,203.48,203.47,6.39500569]
[1755971696174,122.34922374,203.48,203.45,4.9168]
[1755971696375,122.34922374,203.48,203.46,6.39580039]
[1755971696677,122.34922374,203.48,203.47,6.39580039]
[1755971696976,122.34922374,203.48,203.47,6.39562565]
[1755971700177,4.9151,203.53,203.48,7.566]
[1755971700377,3.24922374,203.5,203.49,6.39562565]
[1755971703176,119.08,203.52,203.49,9.04562565]
[1755971703378,3.24922374,203.51,203.5,9.04562565]
[1755971704282,122.32922374,203.51,203.5,9.04562565]
[1755971704984,122.32922374,203.51,203.5,9.07362063]
[1755971705385,3.24922374,203.51,203.5,9.07362063]
[1755971705583,122.32922374,203.51,203.5,9.07362063]
[1755971708790,3.24922374,203.51,203.5,9.07362063]
[1755971709487,122.32922374,203.51,203.5,9.07362063]
[1755971709686,3.24922374,203.51,203.5,9.07362063]
[1755971709887,122.32922374,203.51,203.5,9.07362063]
[1755971712490,122.32922374,203.51,203.5,6.42362063]
[1755971713489,3.24922374,203.51,203.5,6.42362063]
[1755971713789,122.30922374,203.51,203.5,6.42362063]
[1755971713986,3.24922374,203.55,203.5,6.42362063]
[1755971714191,119.06,203.54,203.53,2.8]
[1755971714386,119.06,203.54,203.53,7.5292957]
[1755971714581,119.06,203.54,203.53,12.4440957]
[1755971714788,119.06,203.54,203.53,14.13178873]
[1755971715291,119.06,203.54,203.53,14.131628]
[1755971716290,119.06,203.54,203.53,12.43913857]
[1755971718498,119.06,203.54,203.53,9.63913857]
[1755971718695,119.06,203.54,203.53,12.43913857]
[1755971718886,84.93058171,203.56,203.53,12.43913857]
[1755971719092,84.93058171,203.56,203.53,7.7148]
[1755971719498,119.04,203.55,203.53,7.7148]
[1755971720993,119.04,203.55,203.5,3.24922374]
[1755971720994,3.24922374,203.58,203.54,9.63277515]
[1755971721197,119.04,203.57,203.54,7.7146]
[1755971721591,119.04,203.56,203.54,7.7146]
[1755971721899,3.24922374,203.58,203.54,4.9146]
[1755971722090,119.04,203.55,203.54,4.9146]
[1755971722291,119.04,203.55,203.54,9.63140906]
[1755971723398,3.24922374,203.58,203.54,9.63140906]
[1755971723697,119.04,203.57,203.54,4.9146]
[1755971723890,3.24922374,203.58,203.54,4.9146]
[1755971724090,119.04,203.57,203.54,4.9146]
[1755971726295,3.24922374,203.56,203.54,4.9146]
[1755971726898,119.02,203.55,203.54,4.9146]
[1755971727099,119.02,203.55,203.54,9.6277182]
[1755971727697,119.02,203.55,203.54,4.9146]
[1755971727899,3.24922374,203.56,203.54,4.9146]
[1755971728198,119.02,203.55,203.54,4.9146]
[1755971730102,3.24922374,203.56,203.54,4.9146]
[1755971730303,119.02,203.55,203.54,4.9146]
[1755971730700,119.02,203.55,203.54,9.65070247]
[1755971731399,119.02,203.55,203.54,4.9146]
[1755971735108,119.0,203.55,203.54,9.65139951]
[1755971735504,3.24922374,203.56,203.54,9.65139951]
[1755971735806,119.0,203.55,203.54,4.9146]
[1755971736009,119.0,203.55,203.54,9.651382]
[1755971736402,119.0,203.55,203.54,4.9146]
[1755971738910,3.24922374,203.56,203.54,4.9146]
[1755971739306,122.24922374,203.56,203.54,4.9146]
[1755971740011,3.24922374,203.56,203.54,4.9146]
[1755971740310,122.24922374,203.56,203.54,4.9146]
[1755971741008,3.24922374,203.56,203.54,4.9146]
[1755971741214,119.0,203.55,203.46,115.93166945]
[1755971741407,3.24922374,203.5,203.47,6.42963611]
[1755971741612,122.24922374,203.5,203.48,4.74086474]
[1755971741806,122.24922374,203.5,203.49,4.74086474]
[1755971742014,119.0,203.5,203.46,115.93166945]
[1755971742309,3.24922374,203.48,203.47,4.74129164]
[1755971742810,3.24922374,203.48,203.46,115.93166945]
[1755971744212,3.24922374,203.48,203.47,4.74345039]
[1755971744407,3.24922374,203.48,203.46,115.93166945]
[1755971744604,3.24922374,203.48,203.47,4.74284059]
[1755971745711,3.24922374,203.48,203.46,115.93166945]
[1755971745903,3.24922374,203.48,203.47,4.74237271]
[1755971746306,3.24922374,203.48,203.47,6.43128399]
[1755971748213,3.24922374,203.48,203.47,4.74202968]